{"text_format":"3","workbook":"xlsx","n_sheets":1,"sheets":["Startudgifter"],"not_rendered":{"defined_names":1},"read":"whole","date_system":"1900"}

{"sheet":"Startudgifter","index":0,"n_rows":120,"n_cols":4,"rows_kept":120,"merged":[[1,1,1,3],[60,1,60,3],[82,1,82,3]]}
["STARTUDGIFTER",null,null,"FIRMANAVN, APS"]
[null,"EN BEMÆKRNING, FØR DU BRUGER DETTE REGNEARK\nNæsten alle, der har startet en virksomhed, har undervurderet omkostningerne og derefter stået over for risikoen for at køre med utilstrækkelige bundne reserver. Nøglen til at undgå denne fælde er at være virkelig omhyggelig i din research og planlægning. Vores skabelon Startudgifter fører dig gennem processen.\n\nSTART MED AT ESTIMERE UDGIFTERNE\nHvad vil det koste dig for at få din virksomhed op at køre?  Nøglen til at ramme rigtigt her er at være opmærksom på detaljerne. For hver kategori af udgifter skal du sammensætte en liste over alt det, du får brug for at købe. Dette omfatter både håndgribelige aktiver (f.eks. udstyr, lager) og tjenester (f.eks. renovering, forsikring). Find derefter ud af, hvor du kan købe disse varer eller tjenester. Undersøg flere leverandører – dvs. sammenlign købsmuligheder. Se ikke kun på prisen. Betalingsvilkår, levering, pålidelighed og service er også vigtigt. "]
[]
[null,"STARTUDGIFTER"]
[null,"BYGNINGER/EJENDOM"," ","BELØB"]
[null,"Køb",null,{"v":0,"d":"kr. 0.00"}]
[null,"Byggeri",null,{"v":0,"d":"kr. 0.00"}]
[null,"Ombygning",null,{"v":0,"d":"kr. 0.00"}]
[null,"Andet",null,{"v":0,"d":"kr. 0.00"}]
[null,"Total",null,{"$f":"SUBTOTAL(109,Ejendom[BELØB])","v":{"v":0,"d":"kr. 0.00"}}]
[]
[null,"INDRETNING AF LEJEDE LOKALER"," ","BELØB"]
[null,"Vare 1",null,{"v":0,"d":"kr. 0.00"}]
[null,"Vare 2",null,{"v":0,"d":"kr. 0.00"}]
[null,"Vare 3",null,{"v":0,"d":"kr. 0.00"}]
[null,"Vare 4",null,{"v":0,"d":"kr. 0.00"}]
[null,"Total",null,{"$f":"SUBTOTAL(109,Forbedringer[BELØB])","v":{"v":0,"d":"kr. 0.00"}}]
[]
[null,"LISTE OVER KAPITALUDSTYR"," ","BELØB"]
[null,"Møbler",null,{"v":0,"d":"kr. 0.00"}]
[null,"Udstyr",null,{"v":0,"d":"kr. 0.00"}]
[null,"Inventar",null,{"v":0,"d":"kr. 0.00"}]
[null,"Maskiner",null,{"v":0,"d":"kr. 0.00"}]
[null,"Andet",null,{"v":0,"d":"kr. 0.00"}]
[null,"Total",null,{"$f":"SUBTOTAL(109,Kapital[BELØB])","v":{"v":0,"d":"kr. 0.00"}}]
[]
[null,"UDGIFTER TIL PLACERING OG ADMINISTRATION"," ","BELØB"]
[null,"Leje",null,{"v":0,"d":"kr. 0.00"}]
[null,"Forsyningsindskud",null,{"v":0,"d":"kr. 0.00"}]
[null,"Juridiske og regnskabsgebyrer",null,{"v":0,"d":"kr. 0.00"}]
[null,"Forudbetalt forsikring",null,{"v":0,"d":"kr. 0.00"}]
[null,"Lønninger før åbningen ",null,{"v":0,"d":"kr. 0.00"}]
[null,"Andet",null,{"v":0,"d":"kr. 0.00"}]
[null,"Total",null,{"$f":"SUBTOTAL(109,Administrationsudgifter[BELØB])","v":{"v":0,"d":"kr. 0.00"}}]
[]
[null,"STARTLAGER"," ","BELØB"]
[null,"Kategori 1",null,{"v":0,"d":"kr. 0.00"}]
[null,"Kategori 2",null,{"v":0,"d":"kr. 0.00"}]
[null,"Kategori 3",null,{"v":0,"d":"kr. 0.00"}]
[null,"Kategori 4",null,{"v":0,"d":"kr. 0.00"}]
[null,"Kategori 5",null,{"v":0,"d":"kr. 0.00"}]
[null,"Total",null,{"$f":"SUBTOTAL(109,Startlager[BELØB])","v":{"v":0,"d":"kr. 0.00"}}]
[]
[null,"UDGIFTER TIL REKLAME OG SALGSFREMSTØD"," ","BELØB"]
[null,"Reklame",null,{"v":0,"d":"kr. 0.00"}]
[null,"Skilte",null,{"v":0,"d":"kr. 0.00"}]
[null,"Trykkeri",null,{"v":0,"d":"kr. 0.00"}]
[null,"Rejser/underholdning",null,{"v":0,"d":"kr. 0.00"}]
[null,"Andre/flere kategorier",null,{"v":0,"d":"kr. 0.00"}]
[null,"Total",null,{"$f":"SUBTOTAL(109,UdgifterTilSalgsfremstød[BELØB])","v":{"v":0,"d":"kr. 0.00"}}]
[]
[null,"ANDRE UDGIFTER"," ","BELØB"]
[null,"Anden udgift 1",null,{"v":0,"d":"kr. 0.00"}]
[null,"Anden udgift 2",null,{"v":0,"d":"kr. 0.00"}]
[null,"Total",null,{"$f":"SUBTOTAL(109,AndreUdgifter[BELØB])","v":{"v":0,"d":"kr. 0.00"}}]
[]
[null,"Reserve til uforudsete udgifter",null,{"v":0,"d":"kr. 0.00"}]
[]
[null,"Driftskapital ",null,{"v":0,"d":"kr. 0.00"}]
[]
[null,"Tilføj en reserve til uforudsete udgifter\nSørg for at forklare, hvordan du har besluttet, hvor meget du sætter ind i denne reserve. \n\nFASTLÆG DIN LIKVIDITET\nDu kan ikke åbne virksomheden med en tom bankkonto. Du skal have en \"stødpude\" af penge, så du kan klare udgifter, mens virksomheden kommer i gang. I sidste ende skal du projicere 12 måneders likviditet. Det er her, du finder frem til, hvad du forventer at skulle bruge i driftskapital. På nuværende tidspunkt kan du enten lade denne linje være tom eller give et slag på tasken. Når du har fuldført din likviditet, kan du vende tilbage og angive det nøje undersøgte beløb.\n\nANGIV DINE KAPITALKILDER\nNu hvor du har anslået, hvor meget kapital du skal bruge for at starte, skal du fokusere på den øverste del af dette regneark. Angiv de beløb, du selv står for, hvor meget der vil komme fra partnere eller investorer, og hvor meget der vil stamme fra lån."]
[]
[null,"KAPITALKILDER"]
[null,"EJERENS INVESTERING (NAVN OG EJERSKAB %)"," ","BELØB"]
[null,"Dit navn og din procentdel af ejerskabet",null,{"v":0,"d":"kr. 0.00"}]
[null,"Anden investor",null,{"v":0,"d":"kr. 0.00"}]
[null,"Anden investor",null,{"v":0,"d":"kr. 0.00"}]
[null,"Anden investor",null,{"v":0,"d":"kr. 0.00"}]
[null,"Total",null,{"$f":"SUBTOTAL(109,EjerensInvestering[BELØB])","v":{"v":0,"d":"kr. 0.00"}}]
[]
[null,"BANKLÅN"," ","BELØB"]
[null,"Bank 1",null,{"v":0,"d":"kr. 0.00"}]
[null,"Bank 2",null,{"v":0,"d":"kr. 0.00"}]
[null,"Bank 3",null,{"v":0,"d":"kr. 0.00"}]
[null,"Bank 4",null,{"v":0,"d":"kr. 0.00"}]
[null,"Total",null,{"$f":"SUBTOTAL(109,Banklån[BELØB])","v":{"v":0,"d":"kr. 0.00"}}]
[]
[null,"ANDRE LÅN"," ","BELØB"]
[null,"Kilde 1",null,{"v":0,"d":"kr. 0.00"}]
[null,"Kilde 2",null,{"v":0,"d":"kr. 0.00"}]
[null,"Total",null,{"$f":"SUBTOTAL(109,AndreLån[BELØB])","v":{"v":0,"d":"kr. 0.00"}}]
[]
[null,"GIV BEVIS FOR SIKKERHED\nHvis du skal bruge denne plan til at understøtte en anmodning om et banklån, skal du bruge afsnittet forneden til at vise, hvilke aktiver der tilbydes som sikkerhed, for at sikre lånet, og vurder værdien af disse ting. Du skal kunne bevise dine estimater for værdien af de ting, der stilles i sikkerhed."]
[]
[null,"OVERSIGT"]
[null,"KAPITALKILDE"," ","SAMLEDE BELØB"]
[null,"Investeringer fra ejere og andre",null,{"$f":"EjerensInvestering[[#Totals],[BELØB]]","v":{"v":0,"d":"kr. 0.00"}}]
[null,"Banklån",null,{"$f":"Banklån[[#Totals],[BELØB]]","v":{"v":0,"d":"kr. 0.00"}}]
[null,"Andre lån",null,{"$f":"AndreLån[[#Totals],[BELØB]]","v":{"v":0,"d":"kr. 0.00"}}]
[null,"Total",null,{"$f":"SUBTOTAL(109,Kapitalkilder[SAMLEDE BELØB])","v":{"v":0,"d":"kr. 0.00"}}]
[]
[null,"STARTUDGIFTER"," ","SAMLEDE BELØB"]
[null,"Bygninger/ejendom",null,{"$f":"Ejendom[[#Totals],[BELØB]]","v":{"v":0,"d":"kr. 0.00"}}]
[null,"Indretning af lejede lokaler",null,{"$f":"Forbedringer[[#Totals],[BELØB]]","v":{"v":0,"d":"kr. 0.00"}}]
[null,"Kapitaludstyr",null,{"$f":"Kapital[[#Totals],[BELØB]]","v":{"v":0,"d":"kr. 0.00"}}]
[null,"Udgifter til placering/administration",null,{"$f":"Administrationsudgifter[[#Totals],[BELØB]]","v":{"v":0,"d":"kr. 0.00"}}]
[null,"Startlager",null,{"$f":"Startlager[[#Totals],[BELØB]]","v":{"v":0,"d":"kr. 0.00"}}]
[null,"Udgifter til reklamer/salgsfremstød",null,{"$f":"UdgifterTilSalgsfremstød[[#Totals],[BELØB]]","v":{"v":0,"d":"kr. 0.00"}}]
[null,"Andre udgifter",null,{"$f":"AndreUdgifter[[#Totals],[BELØB]]","v":{"v":0,"d":"kr. 0.00"}}]
[null,"Penge til uforudsete udgifter",null,{"$f":"SUM(Startudgifter!$C$57)","v":{"v":0,"d":"kr. 0.00"}}]
[null,"Driftskapital",null,{"$f":"SUM(Startudgifter!$C$59)","v":{"v":0,"d":"kr. 0.00"}}]
[null,"Total",null,{"$f":"SUBTOTAL(109,Startudgift[SAMLEDE BELØB])","v":{"v":0,"d":"kr. 0.00"}}]
[]
[null,"SIKKERHEDS FOR LÅNEFORSLAG"]
[null,"SIKKERHED FOR LÅN","BESKRIVELSE","VÆRDI"]
[null,"Ejendom",null,{"v":0,"d":"kr. 0.00"}]
[null,"Anden sikkerhed",null,{"v":0,"d":"kr. 0.00"}]
[null,"Anden sikkerhed",null,{"v":0,"d":"kr. 0.00"}]
[null,"Anden sikkerhed",null,{"v":0,"d":"kr. 0.00"}]
[null,"Total",null,{"$f":"SUBTOTAL(109,Sikkerhed[VÆRDI])","v":{"v":0,"d":"kr. 0.00"}}]
[]
[null,"EJERE"," ","  "]
[null,"Dit navn her"]
[null,"Anden ejer"]
[null,"Anden ejer"]
[]
[null,"KAUTIONIST FOR LÅN (BORTSET FRA EJERE)"," ","  "]
[null,"Kautionist for lån 1"]
[null,"Kautionist for lån 2"]
[null,"Kautionist for lån 3"]